Cogmind - Beta 15 @@@ ROGUE MODE // 2025.10.11 @ 18:17:24 Player: NQH Result: Destroyed by S-10 Pest with Light Assault Rifle Performance ------------- Evolutions (2) 1000 Regions Visited (3) 600 Robots Destroyed (13) 65 Value Destroyed (262) 262 Prototype IDs (0) 0 Alien Tech Used (0) 0 Bonus (0) 0 TOTAL SCORE: 1927 Bonus ------- None Cogmind --------- Core Integrity 0/550 Matter 67/300 Energy 0/100 System Corruption 4% Temperature Cool (0) Movement Rolling (100) Location -8/Materials Parts ------- > --- POWER (1) -------- (None) > --- PROPULSION (4) --- Compact Wheel Compact Wheel Compact Wheel > --- UTILITY (2) ------ Light Armor Plating Shield Generator > --- WEAPON (4) ------- (None) > --- INVENTORY (5) ---- Small Storage Unit Medium Storage Unit Medium Matter Pod (100) Peak State ------------ > --- POWER ------------ (None) > --- PROPULSION ------- (None) > --- UTILITY ---------- Large Storage Unit Targeting Computer > --- WEAPON ----------- Rocket Launcher Rocket Launcher Rocket Launcher Rocket Launcher > --- INVENTORY -------- Small Storage Unit Medium Storage Unit Medium Matter Pod Medium Matter Pod Medium Matter Pod Light Armor Plating Shield Generator Field Recycling Unit [Rating: 11] Favorites ----------- Power Ion Engine Engine Ion Engine Propulsion Light Treads Treads Light Treads Wheel Compact Wheel Flight Unit Flight Unit Utility Large Storage Unit Device Improved Sensor Array Storage Large Storage Unit Processor Targeting Computer Protection Backup Plating I Weapon Rocket Launcher Energy Gun EM Shotgun Ballistic Gun Assault Rifle Launcher Rocket Launcher Build | -11 -10 -9 -8 ------- Run | Yrd Mat Mat Mat Slots Evolved 4 | . . 2 2 Power . | . . . . Propulsion 2 | . . 2 . Utility . | . . . . Weapon 2 | . . . 2 Parts Attached 33 | 9 5 8 11 Power 2 | 1 . 1 . Engine 2 | 1 . 1 . Core . | . . . . Reactor . | . . . . Propulsion 13 | 4 2 3 4 Treads 3 | 2 . 1 . Leg . | . . . . Wheel 6 | 2 . . 4 Hover . | . . . . Flight 4 | . 2 2 . Utility 8 | 1 1 2 4 Device 2 | . . . 2 Storage 3 | 1 . 2 . Processor 1 | . 1 . . Hackware . | . . . . Protection 2 | . . . 2 Artifact . | . . . . Weapon 10 | 3 2 2 3 Energy Gun 2 | 1 . . 1 Energy Cannon . | . . . . Ballistic Gun 4 | 2 2 . . Ballistic Cannon . | . . . . Launcher 4 | . . 2 2 Special Weapon . | . . . . Impact Weapon . | . . . . Slashing Weapon . | . . . . Piercing Weapon . | . . . . Special Melee Weapon . | . . . . Unidentified Prototypes . | . . . . Parts Lost 12 | . . 3 9 Power 1 | . . 1 . Propulsion 3 | . . 2 1 Utility 3 | . . . 3 Weapon 5 | . . . 5 Highest Loss Streak 5 | . . 1 5 To Critical Strikes . | . . . . Average Backups 6 | . 4 9 7 Power . | . . . . Propulsion . | . 2 . . Utility 5 | . 1 5 7 Weapon . | . 1 3 . Tool/Special . | . . . . Unused Backups 5 | . 1 . 4 Power . | . . . . Propulsion . | . . . . Utility 4 | . . . 4 Weapon 1 | . 1 . . Tool/Special . | . . . . Average Slot Usage (%) 55 | . 98 59 36 Engine 4 | . 14 6 . Treads 7 | . 26 8 . Flight 2 | . 1 7 . Device 3 | . . . 6 Storage 10 | . 14 11 8 Processor 6 | . 12 11 1 Energy Gun 3 | . . . 6 Ballistic Gun 7 | . 28 5 . Launcher 9 | . . 9 13 Peak Build Rating 11 | 6 8 10 11 Average Rating 7 | 4 6 7 8 On Entrance 4 | . 6 8 3 Naked Turns 19 | . . . 19 Heaviest Build 36 | 14 14 31 36 Greatest Support 48 | 40 40 20 48 Greatest Overweight (x) 11 | 1 1 6 11 Average Overweight (x) 2 | . . . 6 Largest Inventory Capacity 15 | 8 8 15 15 Average Capacity 12 | 6 8 12 14 Most Carried 12 | 1 8 12 11 Average Carried 6 | . 5 9 7 Final Capacity 15 | 8 8 15 5 Final Carried 12 | 1 8 12 3 Class Distribution -------------------- 82% | Mutant 5% | Gunner 4% | Scavenger-Sprinter 4% | Bomber Dominant Class ---------------- Mutant | -10/Materials Mutant | -9/Materials Mutant | -8/Materials Resources | -11 -10 -9 -8 ----------- Run | Yrd Mat Mat Mat Matter Collected 667 | 308 194 65 100 Remotely . | . . . . Salvage Created 325 | 103 127 81 14 Parts 27 | 4 10 8 5 Haulers Intercepted . | . . . . Recyclers Shooed . | . . . . Parts Field Recycled . | . . . . Retrieved Matter . | . . . . Parts Self-Destructed . | . . . . Prevented . | . . . . Kills | -11 -10 -9 -8 ------- Run | Yrd Mat Mat Mat Combat Hostiles Destroyed 7 | . 5 2 . Guns 6 | . 5 1 . AOE 1 | . . 1 . Classes Destroyed 7 | 2 2 3 . Worker 2 | 1 . . 1 Builder 2 | . . 1 1 Recycler 1 | 1 . . . Mechanic 1 | . . 1 . Swarmer 3 | . 3 . . Grunt 2 | . 2 . . Sentry 2 | . . 2 . Best Kill Streak 3 | 2 3 3 1 Combat Bots Only 3 | . 3 1 . Max Kills in Single Turn 2 | 1 1 2 1 Gunslinging . | . . . . Exploded 1 | . . 1 . Melee . | . . . . Uniques/NPCs Destroyed . | . . . . Combat | -11 -10 -9 -8 -------- Run | Yrd Mat Mat Mat Hostile Shots Fired 168 | . 22 70 76 Missed 37 | . 1 16 20 Hits 131 | . 21 54 56 Projectile 131 | . 21 54 56 Critical Strikes 5 | . . 3 2 Damage Taken 1991 | . 231 693 1067 Core 810 | . 9 249 552 Absorbed by Shields 10 | . . . 10 Core Remaining (%) 77 | 100 96 37 . Volleys Fired 32 | 3 14 13 2 Largest 4 | 2 2 2 4 Hottest 132 | 40 40 66 132 Shots Fired 65 | 6 28 26 5 Gun 51 | 6 28 16 1 Cannon . | . . . . Launcher 14 | . . 10 4 Special . | . . . . Kinetic 50 | 6 28 16 . Thermal . | . . . . Explosive 14 | . . 10 4 Electromagnetic 1 | . . . 1 Robot Hit Streak 9 | 4 8 9 5 Robot Miss Streak 2 | 1 2 1 . Penetration Max . | . . . . Secondary Targets . | . . . . Shots Hit Robots 48 | 5 22 20 1 Core Hits 23 | 3 8 9 3 Critical Kills . | . . . . Critical Parts Destroyed . | . . . . Critical Strikes . | . . . . Melee Attacks . | . . . . Impact . | . . . . Slashing . | . . . . Piercing . | . . . . Sneak Attacks . | . . . . Combat Hostiles . | . . . . Follow-up Attacks . | . . . . Damage Inflicted 888 | 59 276 391 162 Guns 430 | 59 276 95 . Cannons . | . . . . Explosions 440 | . . 283 157 Melee . | . . . . Ramming 18 | . . 13 5 Kinetic 430 | 59 276 95 . Thermal . | . . . . Explosive 440 | . . 283 157 Electromagnetic . | . . . . Impact . | . . . . Slashing . | . . . . Piercing . | . . . . Highest Corruption 4 | . . . 4 Average Corruption 4 | . . . 4 Corruption Purged . | . . . . Corruption Blocked . | . . . . Effects 17 | . . . 17 Message Errors 4 | . . . 4 Matter Fused 7 | . . . 7 Heat Flow Errors 1 | . . . 1 Energy Discharges 2 | . . . 2 Data Loss (minor) 2 | . . . 2 Data Loss (major) 1 | . . . 1 Overload Shots . | . . . . Overflow Damage 44 | . . 7 37 Projectiles . | . . . . Explosions 44 | . . 7 37 Melee . | . . . . Knockbacks . | . . . . Impact . | . . . . Kinetic . | . . . . Secondary . | . . . . Self-Inflicted Damage 255 | . . 97 158 Shots 6 | . . 2 4 Rammed 5 | . . 1 4 Targets Rammed 5 | . . 1 4 Kicked . | . . . . Crushed . | . . . . Highest Temperature 246 | . 2 60 246 Average Temperature 36 | . 2 25 76 Received Heat Transfer 627 | . 96 171 360 Effects 1 | . . . 1 Energy Bleed 1 | . . . 1 Siege Activations . | . . . . Martial Activations . | . . . . Shielding Activations . | . . . . Robots Disrupted . | . . . . Combat Hostiles . | . . . . Robots Corrupted . | . . . . Combat Hostiles . | . . . . Parts Fried . | . . . . Impact Corruptions . | . . . . Robots Melted . | . . . . Combat Hostiles . | . . . . Parts Melted . | . . . . Heat Transferred . | . . . . Parts Sabotaged . | . . . . Parts Stolen . | . . . . Parts Stripped . | . . . . Power Chain Reactions . | . . . . Alert | -11 -10 -9 -8 ------- Run | Yrd Mat Mat Mat Maximum Alert Level . | . . . . Low Security (%) 100 | 100 100 100 100 Level 1 . | . . . . Level 2 . | . . . . Level 3 . | . . . . Level 4 . | . . . . Level 5 . | . . . . High Security . | . . . . Max Security . | . . . . Peak Influence 95 | 5 95 43 56 Initial 18 | . . 18 . Average 13 | . 44 11 4 Influence Increases 338 | 10 135 93 100 Destroy 0b10 Robot/C 140 | . 100 40 . Destroy 0b10 Robot/NC 30 | 10 . 10 10 Destroy Leader 40 | . 20 20 . Disable Machine 45 | . . . 45 Destroy Structure 68 | . . 23 45 Lose Combat Pursuer 15 | . 15 . . Influence Decreases 338 | 10 90 138 100 Entered New Map 27 | . . 27 . Time Decay 265 | 10 90 101 64 Lost Part 46 | . . 10 36 Squads Dispatched 3 | . . . 3 Investigation . | . . . . Extermination . | . . . . Reinforcement 3 | . . . 3 Assault . | . . . . Garrison . | . . . . Intercept . | . . . . Searches Triggered . | . . . . Construction Impeded 1 | . . . 1 Haulers Reinforced . | . . . . Active Scanning Responses . | . . . . Cargo Convoy Interrupts . | . . . . Stealth | -11 -10 -9 -8 --------- Run | Yrd Mat Mat Mat Distress Signals 4 | . 3 1 . Communications Jammed . | . . . . Distress Signals . | . . . . Times Spotted 34 | . 7 12 15 Peak Tracking Total 12 | . 5 4 12 Tactical Retreats 1 | . 1 . . Traps | -11 -10 -9 -8 ------- Run | Yrd Mat Mat Mat Traps Triggered 2 | . . . 2 Indirectly . | . . . . Trap Hack Attempts . | . . . . Triggered . | . . . . Disarmed . | . . . . Reprogrammed . | . . . . Reused . | . . . . Traps Extracted . | . . . . Installed . | . . . . Triggered . | . . . . Machines | -11 -10 -9 -8 ---------- Run | Yrd Mat Mat Mat Machines Disabled 3 | . . . 3 Max in Single Turn 2 | . . . 2 Machines Repaired . | . . . . Machines Dismantled . | . . . . Machines Sabotaged . | . . . . Overloaded Fab Kills . | . . . . Hacking | -11 -10 -9 -8 --------- Run | Yrd Mat Mat Mat Machines Accessed . | . . . . Terminals . | . . . . Fabricators . | . . . . Repair Stations . | . . . . Recycling Units . | . . . . Scanalyzers . | . . . . Garrison Access . | . . . . Total Hacks . | . . . . Successful . | . . . . Failed . | . . . . Catastrophic . | . . . . Database Lockouts . | . . . . Manual . | . . . . Terminals . | . . . . Fabricators . | . . . . Repair Stations . | . . . . Recycling Units . | . . . . Scanalyzers . | . . . . Garrison Access . | . . . . Terminal Hacks . | . . . . Fabricator Hacks . | . . . . Repair Station Hacks . | . . . . Recycling Unit Hacks . | . . . . Scanalyzer . | . . . . Garrison Access Hacks . | . . . . Unauthorized Hacks . | . . . . Terminals . | . . . . Fabricators . | . . . . Repair Stations . | . . . . Recycling Units . | . . . . Scanalyzers . | . . . . Garrison Access . | . . . . Data Cores Recovered . | . . . . Used . | . . . . Hacking Detections . | . . . . Full Trace Events . | . . . . Feedback Events . | . . . . Feedback Blocked . | . . . . Robot Schematics Acquired . | . . . . Robots Built . | . . . . Authchips . | . . . . Time . | . . . . Total Robot Build Rating . | . . . . Part Schematics Acquired . | . . . . Parts Built . | . . . . Authchips . | . . . . Time . | . . . . Total Part Build Rating . | . . . . Parts Repaired . | . . . . Time . | . . . . Parts Recycled . | . . . . Recycled Matter . | . . . . Retrieved Matter . | . . . . Retrieved Components . | . . . . Parts Scanalyzed . | . . . . Part Schematics Acquired . | . . . . Parts Damaged . | . . . . Bothacking | -11 -10 -9 -8 ------------ Run | Yrd Mat Mat Mat Used RIF Installer . | . . . . Robots Hacked . | . . . . Non-combat . | . . . . Combat . | . . . . Robot Hacks Applied . | . . . . Relay Couplers Released . | . . . . Fabnet Peak Effective % . | . . . . Robots Rewired . | . . . . Allies Hacked . | . . . . Hacks Repelled . | . . . . Allies | -11 -10 -9 -8 -------- Run | Yrd Mat Mat Mat Total Allies . | . . . . Largest Group . | . . . . Highest-Rated Group . | . . . . Highest-Rated Ally . | . . . . Total Orders . | . . . . Ally Attacks . | . . . . Total Damage . | . . . . Kills . | . . . . Allies Corrupted . | . . . . Allies Melted . | . . . . Intel | -11 -10 -9 -8 ------- Run | Yrd Mat Mat Mat Active Infowar (turns) 518 | . . . 518 Sensors 518 | . . . 518 Robot Analysis Total . | . . . . Derelict Logs Recovered . | . . . . Drone Launches . | . . . . Drone Recoveries . | . . . . Exploration | -11 -10 -9 -8 ------------- Run | Yrd Mat Mat Mat Turns Passed 1522 | 148 296 333 745 Spaces Moved 647 | 83 151 217 196 Core 203 | 7 . 7 189 Treads 335 | 71 138 126 . Legs . | . . . . Wheels 12 | 5 . . 7 Hover . | . . . . Flight 97 | . 13 84 . Fastest Speed 31 | 50 117 31 50 Average Speed 208 | 148 156 127 364 Slowest Speed 600 | 160 160 350 600 Overloaded Moves . | . . . . Propulsion Burnouts . | . . . . Robots Hopped . | . . . . Potential Cave-ins . | . . . . Cave-ins Triggered 1 | . . . 1 Exploration Rate (%) 19 | 4 23 28 23 Regions Visited 3 Branch Regions . Pre-discovered Areas . | . . . . Known Exits Taken . | . . . . Unknown Exits Taken 3 | 1 1 1 . Scrap Searched . | . . . . Spaces Dug . | . . . . Terrain Destroyed 99 | . . 49 50 Melee . | . . . . Projectile . | . . . . AOE 99 | . . 49 50 Terrain Rammed . | . . . . Walls Destroyed . | . . . . Machines Disabled . | . . . . Actions | -11 -10 -9 -8 --------- Run | Yrd Mat Mat Mat Total 757 | 101 187 253 216 Wait . | . . . . Move 644 | 82 150 216 196 Hop . | . . . . Pick Up 19 | 1 12 6 . Fast Attach 19 | 9 2 1 7 Attach 14 | . 3 5 6 Detach 5 | 3 . 2 . Swap 3 | . . 3 . Drop 16 | 3 6 6 1 Fire 32 | 3 14 13 2 Melee . | . . . . Ram 4 | . . . 4 Kick . | . . . . Crush 1 | . . 1 . Escape Stasis . | . . . . Rewire . | . . . . Trap . | . . . . Miscellaneous . | . . . . Route ------- -11/Scrapyard -10/Materials -9/Materials (discovered 2 exits: [*Mat] / [*Min]) -8/Materials History --------- Turn | Location | Event 5 | -11/Scrapyard | Discovered new exit (range 16) 149 | -11/Scrapyard | Entered Materials 313 | -10/Materials | Build established: Mutant 394 | -10/Materials | Discovered new exit (range 15) 445 | -10/Materials | Entered another Materials area 445 | -9/Materials | Evolved 2 slots: Propulsion x2 458 | -9/Materials | Discovered new exit (range 6) 744 | -9/Materials | Discovered new exit (range 16) 771 | -9/Materials | Core integrity fell below 50% 778 | -9/Materials | Entered another Materials area 778 | -8/Materials | Evolved 2 slots: Weapon x2 898 | -8/Materials | Crushed by falling debris 929 | -8/Materials | Lost 3 parts (1u2w) 1259 | -8/Materials | Met 7R-MNS 1468 | -8/Materials | Core integrity fell below 50% 1491 | -8/Materials | Core integrity fell below 20% 1523 | -8/Materials | Destroyed by S-10 Pest with Light Assault Rifle Last Messages --------------- 01470_ U-05 Engineer lays Concrete. 01474_ Acquired Backup Plating I. 01475_ U-05 Engineer lays Concrete. 01476_ Dropped Lrg. Storage Unit. 01476_ U-05 Engineer lays Concrete. 01478_ U-05 Engineer builds a Wall. 01479_ Slammed into U-05 Engineer. 01479_ ALERT: Construction progress impeded, dispatching reinforcements to local area. 01479_ T-07 Excavator is excavating. 01479_ U-05 Engineer lays Concrete. 01486_ Slammed into G-47 Trooper. 01487_ U-05 Engineer builds a Wall. 01489_ Backup Plating I destroyed. 01490_ Critical hit (Burn: +37). 01507_ Acquired 100 matter. 01508_ Acquired Com. Wheel. 01511_ Com. Wheel destroyed. 01513_ Acquired Com. Wheel. 01521_ /GX/OI9B12AXPNFG2CHUQ<1